bitfinex-derivatives/quotes_ETHF0:USTF0_20250430
["timestamp","ask_amount","ask_price","bid_price","bid_amount"]
[1746023617389,2.8149,1772.2,1772.1,4.33623]
[1746023618083,2.8149,1772.2,1772.1,3.2078]
[1746023618287,2.8149,1772.2,1772.1,4.33623]
[1746023618986,5.91707,1772.7,1772.1,6.02885]
[1746023619287,2.8149,1772.6,1772.3,3.2078]
[1746023619787,2.8149,1772.6,1772.5,1.12818]
[1746023619988,2.8149,1772.6,1772.5,4.33598]
[1746023620191,2.8149,1772.6,1772.5,3.2078]
[1746023620388,2.8149,1772.6,1772.5,4.33598]
[1746023620588,3.94301,1772.6,1772.5,3.2078]
[1746023621091,2.8205,1772.5,1772.0,3.2078]
[1746023621282,7.6561,1772.4,1772.0,3.2078]
[1746023621483,8.78439,1772.4,1772.2,4.33615]
[1746023621687,3.99537,1772.4,1772.1,2.7356]
[1746023621885,2.8671,1772.4,1772.1,2.7356]
[1746023622085,2.8671,1772.4,1772.0,4.33625]
[1746023622392,1.12835,1772.3,1772.1,1.12843]
[1746023622590,3.86727,1772.2,1772.1,1.12843]
[1746023622785,1.12843,1772.1,1772.0,3.2078]
[1746023623084,2.7389,1772.1,1771.9,3.2078]
[1746023623284,5.56002,1772.1,1771.8,3.2078]
[1746023623485,5.56002,1772.1,1771.5,2.6628]
[1746023623486,1.12875,1771.6,1771.5,40.8]
[1746023623694,1.129,1771.2,1771.1,2.6628]
[1746023623891,1.129,1771.2,1770.7,5.54057]
[1746023623892,1.12926,1770.8,1770.7,2.7173]
[1746023624094,1.12932,1770.7,1770.6,40.8]
[1746023624388,3.2078,1770.9,1770.1,7.83980234]
[1746023624389,1.12955,1770.4,1770.1,7.83980234]
[1746023624582,2.7389,1770.6,1770.3,1.12955]
[1746023624787,2.7389,1770.6,1770.4,1.12949]
[1746023625088,2.7389,1770.6,1770.5,41.92945]
[1746023625281,3.2078,1770.9,1770.4,3.2078]
[1746023625481,1.12921,1770.9,1770.7,4.33708]
[1746023625687,2.8504,1770.8,1770.5,2.6628]
[1746023625891,1.12932,1770.7,1770.6,40.8]
[1746023626190,3.97967,1770.8,1770.6,40.8]
[1746023626494,2.8504,1770.8,1770.6,40.8]
[1746023626693,2.8504,1770.8,1770.7,1.12932]
[1746023626991,2.8504,1770.8,1770.7,2.8558]
[1746023627187,3.97966,1770.8,1770.7,2.8558]
[1746023627490,1.12932,1770.7,1770.6,40.8]
[1746023627694,2.8504,1770.7,1770.6,40.8]
[1746023627996,2.8504,1770.7,1770.6,41.92939]
[1746023628295,2.8504,1770.9,1770.8,1.12926]
[1746023628696,3.97963,1770.9,1770.7,3.98506]
[1746023628995,2.8504,1770.9,1770.6,45.13717]
[1746023629194,1.12929,1770.8,1770.6,45.13717]
[1746023629393,1.12918,1771.0,1770.8,1.12926]
[1746023629588,2.7021,1771.0,1770.8,1.12921]
[1746023629792,1.12902,1771.2,1771.0,1.12911]
[1746023629988,5.9099,1771.2,1770.9,1.12916]
[1746023630197,1.12912,1771.1,1770.9,1.12919]
[1746023630397,2.7021,1771.0,1770.9,1.12919]
[1746023630794,5.91898,1771.3,1771.2,1.129]
[1746023631092,4.79,1771.3,1771.0,3.8486]
[1746023631298,1.12907,1771.1,1771.0,1.12913]
[1746023631489,2.7021,1771.2,1770.8,2.7195]
[1746023631690,3.83447,1771.0,1770.8,2.7195]
[1746023631986,7.61237,1771.3,1770.8,3.84872]
[1746023632186,1.12915,1771.0,1770.9,1.12919]
[1746023632393,2.7053,1771.2,1770.8,2.7195]
[1746023633002,2.7053,1771.2,1770.6,44.0078]
[1746023633003,2.82298,1771.1,1770.6,44.0078]
[1746023633198,1.12938,1770.8,1770.7,1.12939]
[1746023633499,1.12941,1770.8,1770.6,44.0078]
[1746023633700,2.7053,1770.7,1770.6,45.1373]
[1746023634593,1.12921,1771.1,1770.7,2.8236]
[1746023634790,4.791,1771.3,1770.6,46.83155]
[1746023634989,1.12932,1770.9,1770.6,44.0078]
[1746023635190,1.12925,1771.0,1770.9,1.12925]
[1746023635392,1.12925,1771.0,1770.6,44.0078]
[1746023635393,1.12934,1770.9,1770.8,1.12934]
[1746023635591,1.12929,1771.0,1770.9,1.1293]
[1746023635790,1.12933,1770.9,1770.8,1.12932]
[1746023635990,1.12933,1770.9,1770.7,2.7137]
[1746023635991,1.12937,1770.8,1770.7,1.12944]
[1746023636191,1.12944,1770.7,1770.6,40.8]
[1746023636391,7.9988,1770.9,1770.6,40.8]
[1746023636694,1.12944,1770.7,1770.6,40.8]
[1746023636989,10.82213,1770.9,1770.7,1.12942]
[1746023636990,1.1294,1770.8,1770.7,1.12942]
[1746023637198,1.12937,1770.8,1770.7,1.12938]
[1746023637399,1.12938,1770.8,1770.7,1.12939]
[1746023637696,1.12942,1770.8,1770.7,1.12942]
[1746023637897,10.82209,1770.9,1770.4,3.2078]
[1746023638092,3.2078,1770.5,1770.1,3.2078]
[1746023638295,1.12988,1770.0,1769.9,5.9928]
[1746023638595,1.12988,1770.0,1769.9,46.7928]
[1746023639301,1.12988,1770.0,1769.9,3.2078]
[1746023639702,1.13001,1769.8,1769.7,2.785]
[1746023639902,5.92093,1770.0,1769.7,46.7928]
[1746023640204,5.92093,1770.0,1769.9,1.12995]
[1746023640505,4.791,1770.0,1769.9,1.12995]
[1746023640800,3.2078,1771.2,1770.9,1.12929]
[1746023640996,2.82296,1771.1,1770.7,1.12942]
[1746023641190,2.8228,1771.2,1770.8,3.2078]
[1746023641191,1.12936,1770.9,1770.8,3.2078]
[1746023641390,4.33716,1770.9,1770.8,40.8]
[1746023641597,1.12936,1770.9,1770.8,40.8]
[1746023642299,1.12914,1771.2,1770.8,2.82344]
[1746023642503,1.12909,1771.3,1771.1,1.12916]
[1746023642804,1.12909,1771.3,1771.1,41.92916]
[1746023643108,1.12912,1771.2,1771.1,40.8]
[1746023643497,1.12927,1771.0,1770.9,3.2078]
[1746023643794,13.64623,1771.0,1770.0,1.12982]
[1746023643996,13.64623,1771.0,1770.2,2.8831]
[1746023643997,1.12969,1770.3,1770.2,2.8831]
[1746023644196,1.12979,1770.2,1769.7,2.7344]
[1746023644402,2.82391,1770.5,1770.1,3.2078]
[1746023644616,1.12982,1770.1,1770.0,2.8831]
[1746023644802,1.12958,1770.5,1770.0,2.8831]
[1746023645097,4.792,1770.6,1770.5,1.12956]
[1746023645296,1.12952,1770.6,1770.4,1.12959]
[1746023645606,3.2078,1771.1,1770.4,2.82404]
[1746023645904,3.2078,1771.1,1770.5,5.573]
[1746023646105,1.12933,1770.9,1770.7,1.12939]
[1746023646797,1.12933,1770.9,1770.5,5.573]
[1746023646996,1.12933,1770.9,1770.7,1.12941]
[1746023647400,4.01883,1770.9,1770.7,1.12941]
[1746023647803,4.01883,1770.9,1770.7,1.12451555]
[1746023648305,2.8895,1770.9,1770.8,1.12937]
[1746023648502,2.8895,1770.9,1770.5,5.573]
[1746023648503,4.01882,1770.9,1770.7,1.1294]
[1746023649001,4.783,1771.0,1770.9,1.12931]
[1746023649201,4.783,1771.0,1770.5,5.573]
[1746023649202,1.12936,1770.9,1770.7,1.12942]
[1746023649401,2.8895,1770.9,1770.5,5.573]
[1746023649603,5.9123,1771.0,1770.8,1.12935]
[1746023649791,5.9123,1771.0,1770.9,2.7206]
[1746023649998,1.1293,1771.0,1770.9,2.7206]
[1746023650193,7.9908,1771.1,1771.0,1.12924]
[1746023650410,9.11998,1771.1,1770.9,3.84986]
[1746023650702,1.12924,1771.0,1770.9,3.84989]
[1746023651027,3.93314,1771.0,1770.9,3.84991]
[1746023651228,9.12002,1771.1,1770.9,3.84991]
[1746023651422,5.57382,1771.4,1770.9,5.54385]
[1746023651423,3.2078,1771.3,1770.9,5.54385]
[1746023651615,2.8039,1771.5,1771.0,2.82312]
[1746023651818,10.645,1771.6,1771.5,1.12893]
[1746023652022,4.783,1771.6,1771.5,41.92893]
[1746023652224,5.91186,1771.6,1771.5,40.8]
[1746023652531,8.71576,1771.6,1771.5,40.8]
[1746023652722,3.2078,1771.7,1771.6,1.12886]
[1746023652916,1.12886,1771.6,1771.5,40.8]
[1746023653122,3.79426,1771.6,1771.5,40.8]
[1746023653332,2.6654,1771.6,1771.5,44.60893]
[1746023653519,1.12884,1771.7,1771.6,1.12886]
[1746023653727,1.12884,1771.7,1771.5,44.6089]
[1746023654234,2.6654,1771.8,1771.7,1.1288]
[1746023654235,3.79417,1771.8,1771.7,1.1288]
[1746023654430,3.2078,1771.9,1771.8,1.12873]
[1746023654623,2.6654,1772.2,1772.1,1.12854]
[1746023654829,9.25594152,1772.4,1772.3,1.12842]
[1746023655025,13.04972152,1772.4,1772.2,1.12845]
[1746023655233,11.92134152,1772.4,1772.0,2.68]
[1746023655631,1.12848,1772.2,1772.0,2.68]
[1746023655934,2.6654,1772.1,1771.8,2.7166]
[1746023656230,10.6552,1772.1,1771.5,40.8]
[1746023656536,1.12886,1771.6,1771.5,40.8]
[1746023656739,3.2078,1771.8,1771.5,40.8]
[1746023656932,3.78261,1771.9,1771.6,3.2078]
[1746023657128,1.12873,1771.8,1771.7,2.6444]
[1746023657342,1.12873,1771.8,1771.0,3.2078]
[1746023657343,1.12904,1771.4,1771.0,3.2078]
[1746023657527,7.9898,1771.6,1771.2,2.6444]
[1746023657727,2.6539,1771.5,1770.9,5.9471]
[1746023657939,2.6539,1771.5,1771.1,1.12918]
[1746023658232,2.6539,1771.5,1771.2,1.12909]
[1746023658431,3.2078,1771.4,1771.3,3.77345]
[1746023658729,4.782,1771.8,1771.3,5.8522]
[1746023659034,2.82216,1771.6,1771.0,43.62308]
[1746023659313,3.2078,1771.6,1771.3,2.5258]
[1746023659515,1.12887,1771.6,1771.5,1.12889]
[1746023659809,5.47527,1772.0,1771.5,1.12889]
[1746023659810,1.12861,1772.0,1771.9,1.12863]
[1746023660011,4.782,1772.1,1771.6,8.08726]
[1746023660208,7.4427,1772.1,1771.6,5.2651]
[1746023660413,1.12867,1771.9,1771.6,8.08724]
[1746023660611,1.12867,1772.0,1771.7,2.5258]
[1746023660811,1.12869,1771.9,1771.8,1.1287]
[1746023661012,1.12873,1771.8,1771.7,2.5258]
[1746023661209,5.8685,1772.0,1771.7,3.6546]
[1746023661507,7.4427,1772.0,1771.7,2.5258]
[1746023661708,1.12873,1771.8,1771.7,2.5258]
[1746023661916,7.4427,1772.0,1771.9,1.12867]
[1746023662108,2.6607,1772.0,1771.9,1.12867]
[1746023662414,3.78931,1772.0,1771.9,1.12867]
[1746023662716,1.1287,1771.9,1771.8,1.1287]
[1746023662920,3.6344,1771.9,1771.8,1.1287]
[1746023664015,13.3677,1771.9,1771.3,3.2078]
[1746023664216,8.6586,1771.8,1771.2,2.8228]
[1746023664414,1.12894,1771.5,1771.4,1.12892]
[1746023664711,1.12893,1771.5,1771.4,40.8]
[1746023665116,12.73835,1771.8,1771.4,40.8]
[1746023665418,1.1289,1771.6,1771.5,3.759]
[1746023665614,1.1289,1771.6,1771.5,3.75903]
[1746023665816,1.1289,1771.6,1771.5,2.6301]
[1746023666118,1.1289,1771.6,1771.5,3.75903]
[1746023666512,1.12893,1771.5,1771.4,41.92894]
[1746023666811,1.1289,1771.6,1771.5,1.12888]
[1746023667005,1.1289,1771.6,1771.5,3.75898]
[1746023667224,1.12875,1771.8,1771.7,1.12874]
[1746023667415,1.12883,1771.7,1771.6,1.12882]
[1746023668116,1.12886,1771.6,1771.5,6.49268]
[1746023668317,1.12882,1771.7,1771.6,1.1288]
[1746023668718,11.27259,1771.9,1771.7,1.12875]
[1746023668719,1.12877,1771.8,1771.7,1.12875]
[1746023669319,1.12883,1771.7,1771.6,1.12881]
[1746023669718,1.12883,1771.7,1771.5,2.7337]
[1746023669719,3.67969,1771.8,1771.7,1.1288]
[1746023669916,1.12886,1771.7,1771.6,1.12884]
[1746023670418,3.67968,1771.8,1771.7,1.1288]
[1746023670624,9.0698,1771.9,1771.5,2.7337]
[1746023670820,3.67944,1772.2,1772.1,1.12854]
[1746023671020,2.5509,1772.2,1772.1,1.12854]
[1746023671323,3.67938,1772.2,1772.1,1.12854]
[1746023671723,1.12865,1772.0,1771.9,1.1286]
[1746023672525,2.82181,1771.9,1771.6,3.2078]
[1746023672726,1.12886,1771.6,1771.5,3.86261]
[1746023672923,2.6917,1771.9,1771.5,5.9415]
[1746023673231,1.12878,1771.8,1771.7,1.12875]
[1746023673528,2.6917,1771.9,1771.5,5.9415]
[1746023673727,5.8995,1771.9,1771.5,8.76379]
[1746023673921,1.12878,1771.8,1771.7,1.12875]
[1746023674120,2.6917,1771.8,1771.7,1.12875]
[1746023674331,8.39303,1772.0,1771.9,1.12867]
[1746023674530,11.03903,1772.0,1771.9,1.12867]
[1746023675024,9.9104,1772.0,1771.9,1.12867]
[1746023675825,11.03901,1772.0,1771.9,1.12867]
[1746023676831,6.25801,1772.0,1771.9,1.12867]
[1746023677133,5.1294,1772.0,1771.9,1.12867]
[1746023677522,6.25801,1772.0,1771.9,1.12867]
[1746023677728,5.1294,1772.0,1771.9,1.12867]
[1746023678029,4.33629,1772.2,1772.1,1.12854]
[1746023678232,5.8866,1772.2,1772.1,1.12854]
[1746023678435,3.80728,1772.2,1772.1,1.12854]
[1746023678634,2.6788,1772.2,1772.1,1.12854]
[1746023678833,3.80728,1772.2,1772.1,1.12854]
[1746023679026,2.6788,1772.2,1772.1,1.12854]
[1746023679228,1.12831,1772.5,1772.4,1.12835]
[1746023679426,1.12831,1772.5,1772.4,1.1283]
[1746023679427,1.12833,1772.5,1772.4,1.1283]
[1746023679629,1.12854,1772.1,1772.0,2.6452]
[1746023679929,1.12865,1772.0,1771.7,6.02967]
[1746023680135,1.1286,1772.1,1772.0,1.12856]
[1746023680637,1.12864,1772.0,1771.9,1.12861]
[1746023680843,1.12868,1771.9,1771.8,1.12867]
[1746023681137,3.2078,1772.1,1771.7,2.82189]
[1746023681436,2.5268,1771.9,1771.8,1.12873]
[1746023682332,1.12893,1771.5,1771.4,40.8]
[1746023682527,2.82189,1771.8,1771.4,44.0078]
[1746023682726,3.2078,1772.0,1771.5,2.82224]
[1746023682931,3.2078,1772.0,1771.9,1.12867]
[1746023683336,1.1287,1771.9,1771.8,1.12871]
[1746023683532,3.2078,1772.0,1771.9,1.12867]
[1746023684538,3.2078,1772.0,1771.6,2.6643]
[1746023684738,3.2078,1772.0,1771.7,1.12877]
[1746023684935,1.12876,1771.8,1771.7,1.12877]
[1746023685140,2.82177,1771.9,1771.4,40.8]
[1746023685437,1.12889,1771.6,1771.5,1.12889]
[1746023685632,1.12886,1771.6,1771.5,1.12888]
[1746023685833,1.12885,1771.7,1771.5,1.12888]
[1746023686035,1.12893,1771.5,1771.4,40.8]
[1746023686434,1.12893,1771.5,1771.4,41.92899]
[1746023686633,2.82225,1771.6,1771.3,3.2078]
[1746023686835,1.12912,1771.2,1771.1,2.7328]
[1746023687042,1.12907,1771.3,1771.2,1.12907]
[1746023687233,5.83004,1771.4,1771.3,1.12905]
[1746023687733,5.83001,1771.4,1771.3,1.12905]
[1746023688039,1.12905,1771.3,1771.2,2.714]
[1746023688238,1.12911,1771.3,1771.2,1.12911]
[1746023688439,1.12912,1771.2,1771.1,44.66193]
[1746023688638,1.12912,1771.2,1771.1,1.12913]
[1746023689136,1.12924,1771.0,1770.9,3.84331]
[1746023689435,11.69209,1771.3,1770.9,2.714]
[1746023689642,1.12912,1771.2,1771.1,1.12913]
[1746023690236,1.12913,1771.2,1771.1,1.12914]
[1746023690635,11.6921,1771.3,1771.2,1.12912]
[1746023690831,10.563,1771.3,1771.2,1.12912]
[1746023691337,1.12912,1771.2,1771.1,3.79583]
[1746023691542,1.12982,1770.1,1769.9,11.18127136]
[1746023691932,1.12995,1769.9,1769.8,7.40895505]
[1746023692133,9.03875,1769.9,1769.8,7.40895505]
[1746023692439,5.83095,1769.9,1769.8,7.40895505]
[1746023692652,7.9088,1769.9,1769.8,8.53896505]
[1746023692944,4.701,1769.9,1769.8,8.53896505]
[1746023693936,2.6812,1770.0,1769.9,1.12995]
[1746023694132,2.6812,1770.0,1769.9,2.7046]
[1746023694334,1.12995,1769.9,1769.8,8.53894505]
[1746023694539,1.12995,1769.9,1769.8,7.40895505]
[1746023694939,2.6812,1770.0,1769.8,7.40895505]
[1746023695244,1.12995,1769.9,1769.8,7.40895505]
[1746023695839,1.12995,1769.9,1769.3,2.651]
[1746023695840,1.13014,1769.6,1769.3,2.7335]
[1746023696145,3.2078,1769.7,1769.5,1.1302]
[1746023696340,5.83316,1769.6,1769.4,1.13024]
[1746023696542,4.703,1769.6,1769.5,1.1302]
[1746023697345,7.3226,1769.6,1769.5,1.1302]
[1746023697847,3.2078,1769.7,1769.3,2.8258]
[1746023698040,4.704,1769.8,1769.7,1.13007]
[1746023698436,7.3236,1769.8,1769.7,1.13007]
[1746023699543,4.704,1769.8,1769.7,1.13007]
[1746023699847,2.7307,1769.9,1769.8,1.13001]
[1746023700347,2.7307,1769.9,1769.6,2.7335]
[1746023700551,3.86067,1769.9,1769.8,1.13001]
[1746023700740,1.13001,1769.8,1769.7,3.77914]
[1746023701046,16.5055,1769.8,1768.8,5.8565]
[1746023701346,3.2078,1769.3,1769.0,2.6491]
[1746023701546,5.862,1769.5,1769.4,1.13027]
[1746023701738,10.567,1769.6,1769.5,1.1302]
[1746023701944,11.69714,1769.6,1769.5,1.1302]
[1746023702343,1.13022,1769.5,1769.4,1.13022]
[1746023702539,1.13031,1769.4,1769.3,1.13031]
[1746023702943,2.5971,1769.5,1769.0,5.35557]
[1746023703152,2.5971,1769.3,1769.2,1.13033]
[1746023704550,3.72743,1769.3,1769.2,1.13033]
[1746023704745,1.13043,1769.2,1769.1,1.13043]
[1746023704950,7.3953,1769.2,1768.9,40.8]
[1746023705148,1.1305,1769.1,1769.0,1.13049]
[1746023705347,3.8198,1769.1,1769.0,1.13049]
[1746023705647,1.13058,1768.9,1768.8,1.13059]
[1746023705855,1.1307,1768.8,1768.7,1.13069]
[1746023706145,8.411,1768.8,1768.7,1.13069]
[1746023706551,7.2803,1768.8,1768.6,2.6123]
[1746023706856,7.2803,1768.8,1768.7,1.13071]
[1746023707251,10.4881,1768.8,1768.7,1.13071]
[1746023707554,8.41095,1768.8,1768.7,1.13071]
[1746023707851,11.61875,1768.8,1768.7,1.13071]
[1746023708045,1.13074,1768.7,1768.6,1.13072]
[1746023708248,2.778,1768.7,1768.6,1.13072]
[1746023708553,5.72169,1768.8,1768.7,1.13071]
[1746023709447,1.13077,1768.7,1768.6,1.13076]
[1746023709655,3.90875,1768.7,1768.6,1.13078]
[1746023710041,1.13102,1768.3,1768.2,1.13103]
[1746023710246,1.13103,1768.2,1768.1,2.7615]
[1746023710653,1.13116,1768.0,1767.9,2.5879]
[1746023710941,2.5751,1768.1,1767.6,5.9483]
[1746023711149,5.724,1768.3,1768.2,1.13103]
[1746023711441,5.724,1768.3,1767.7,46.32405]
[1746023711442,7.42045,1768.3,1767.7,46.32405]
[1746023711641,3.2078,1768.0,1767.7,46.32405]
[1746023711840,1.13126,1767.9,1767.8,1.13128]
[1746023712053,1.13126,1767.9,1767.7,44.627]
[1746023712248,3.70639,1767.8,1767.7,44.62705]
[1746023712448,2.5751,1767.8,1767.7,44.62705]
[1746023712754,4.593,1767.9,1767.8,1.13129]
[1746023713954,8.30282,1767.9,1767.8,1.13129]
[1746023714149,1.13129,1767.8,1767.7,43.4957]
[1746023714453,1.13135,1767.7,1767.6,2.7405]
[1746023714649,1.13144,1767.6,1767.3,6.03682]
[1746023714854,2.5786,1767.6,1767.5,1.13143]
[1746023715353,2.5786,1767.6,1767.5,3.87623]
[1746023715554,14.79407,1767.9,1767.8,1.13129]
[1746023715759,1.13131,1767.8,1767.7,1.1313]
[1746023716150,1.13138,1767.7,1767.6,1.13137]
[1746023716456,1.13132,1767.8,1767.7,1.13132]
[1746023716758,1.1314,1767.7,1767.6,1.1314]
[1746023717056,6.8888,1767.7,1767.6,1.1314]
[1746023717257,1.13142,1767.6,1767.5,3.87622]
[1746023717456,5.7574,1767.7,1767.4,40.8]
[1746023717457,3.2078,1767.7,1767.4,40.8]
[1746023717658,4.33918,1767.7,1767.6,1.13142]
[1746023717958,1.13142,1767.6,1767.5,1.13143]
[1746023718157,1.13142,1767.6,1767.2,3.64215]
[1746023718158,1.13161,1767.3,1767.2,3.64215]
[1746023718348,3.2078,1767.3,1767.0,2.6573]
[1746023718548,1.13163,1767.3,1767.2,1.13167]
[1746023718753,1.13167,1767.2,1767.1,1.13174]
[1746023718952,2.5496,1767.3,1767.1,2.5105]
[1746023719159,2.5496,1767.3,1767.1,44.44218]
[1746023719160,1.13167,1767.2,1767.1,44.44218]
[1746023719358,2.5496,1767.3,1767.1,44.44218]
[1746023719359,2.5496,1767.3,1767.2,1.13167]
[1746023719856,1.13172,1767.2,1767.0,2.6573]
[1746023720060,1.13172,1767.2,1767.0,1.13174]
[1746023720061,1.13176,1767.1,1767.0,1.13174]
[1746023720259,3.88659,1767.1,1767.0,1.1318]
[1746023720562,2.7548,1767.1,1767.0,1.1318]
[1746023721058,2.7548,1767.1,1767.0,3.6635]
[1746023721251,2.7548,1767.1,1767.0,1.1318]
[1746023721454,5.862,1767.2,1767.1,1.13174]
[1746023721752,5.862,1767.2,1766.9,40.8]
[1746023721958,8.6168,1767.2,1767.1,1.13174]
[1746023722261,1.13174,1767.1,1767.0,3.66345]
[1746023722455,3.88654,1767.1,1767.0,3.66345]
[1746023722657,2.7548,1767.1,1767.0,3.66345]
[1746023723062,5.862,1767.2,1767.1,1.13174]
[1746023723656,9.72877,1767.2,1767.1,1.13174]
[1746023724364,1.13174,1767.1,1767.0,3.66345]
[1746023724664,9.72882,1767.2,1767.1,1.13174]
[1746023724961,1.13174,1767.1,1767.0,3.66345]
[1746023725162,3.86684,1767.1,1767.0,3.66345]
[1746023725363,9.0698,1767.2,1767.0,3.66345]
[1746023725664,1.13174,1767.1,1767.0,3.66345]
[1746023725867,1.13199,1766.8,1766.7,1.13197]
[1746023726060,1.13199,1766.8,1766.7,3.84407]
[1746023726261,1.13199,1766.8,1766.7,44.64407]
[1746023726462,3.2078,1767.1,1767.0,1.1318]
[1746023726767,9.54772,1767.3,1767.2,1.13167]
[1746023726958,8.4161,1767.3,1767.2,1.13167]
[1746023727162,6.99361,1767.3,1767.2,1.13167]
[1746023727460,1.12604919,1767.2,1767.1,3.84384]
[1746023728064,9.54774,1767.3,1767.2,1.13167]
[1746023728266,9.54774,1767.3,1767.2,3.84377]
[1746023728459,9.54774,1767.3,1767.2,1.13167]
[1746023728964,8.4161,1767.3,1767.0,2.7121]
[1746023729161,1.1317,1767.2,1767.1,1.13167]
[1746023729555,7.8058,1767.4,1767.0,2.7121]
[1746023729763,2.645,1767.2,1767.0,2.7121]
[1746023729958,1.13174,1767.1,1767.0,2.7121]
[1746023730265,1.13193,1766.8,1766.7,40.8]
[1746023730455,1.13193,1766.8,1766.7,43.2836]
[1746023731061,1.13193,1766.8,1766.7,2.4836]
[1746023731465,1.13206,1766.6,1766.5,1.1321]
[1746023731659,4.33982,1766.7,1766.6,1.13202]
[1746023731966,4.33982,1766.7,1766.6,41.93202]
[1746023731967,3.77702,1766.7,1766.6,41.93202]
[1746023732165,3.77702,1766.7,1766.6,40.8]
[1746023732559,6.98482,1766.7,1766.6,40.8]
[1746023733168,3.77702,1766.7,1766.6,40.8]
[1746023733360,1.13202,1766.7,1766.6,43.4938]
[1746023734366,4.33982,1766.7,1766.6,43.4938]
[1746023734771,1.13212,1766.5,1766.4,1.13218]
[1746023734965,1.13212,1766.5,1766.4,3.70708]
[1746023735163,1.13212,1766.5,1766.4,2.5749]
[1746023735471,1.13225,1766.3,1766.2,3.2078]
[1746023735661,1.13225,1766.3,1766.2,1.13231]
[1746023735967,1.13225,1766.3,1766.2,41.93231]
[1746023736365,3.2078,1766.4,1766.2,45.8]
[1746023736568,4.599,1766.6,1766.2,45.8]
[1746023736569,1.13216,1766.5,1766.4,1.13218]
[1746023736964,1.13218,1766.4,1766.3,2.5749]
[1746023737271,4.599,1766.6,1766.3,2.5749]
[1746023737462,4.597,1766.8,1766.7,1.13199]
[1746023737669,5.72893,1766.8,1766.7,1.13199]
[1746023738059,1.13193,1766.8,1766.7,2.5255]
[1746023738257,3.2078,1766.9,1766.8,1.13193]
[1746023738662,4.33966,1766.9,1766.8,1.13193]
[1746023738858,1.13193,1766.8,1766.7,2.5255]
[1746023739163,1.13193,1766.8,1766.3,3.2078]
[1746023739164,1.13218,1766.4,1766.3,3.2078]
[1746023739368,1.13225,1766.3,1766.2,40.8]
[1746023739767,2.83015,1766.6,1766.2,41.93225]
[1746023739974,1.13225,1766.3,1766.2,41.93226]
[1746023740765,1.13231,1766.2,1766.1,3.65788]
[1746023741157,1.13231,1766.2,1766.1,44.45788]
[1746023741363,4.597,1766.4,1766.1,48.3255]
[1746023741565,1.13227,1766.3,1766.2,3.75766]
[1746023743268,1.13227,1766.3,1766.2,3.75771]
[1746023743470,1.13227,1766.3,1766.2,2.6254]
[1746023743860,1.13227,1766.3,1766.2,3.75771]
[1746023744169,1.13227,1766.3,1766.2,2.6254]
[1746023744365,3.78507,1766.3,1766.2,2.6254]
[1746023744562,1.13238,1766.1,1766.0,2.6181]
[1746023744768,1.13251,1765.9,1765.8,3.82827]
[1746023744963,1.13251,1765.9,1765.8,2.6957]
[1746023745172,1.13251,1765.9,1765.8,43.4957]
[1746023745361,1.13251,1765.9,1765.8,44.62827]
[1746023745766,4.597,1766.0,1765.9,1.13251]
[1746023745970,5.72944,1766.0,1765.9,3.82821]
[1746023746169,4.597,1766.0,1765.7,1.13258]
[1746023746372,1.1326,1765.8,1765.7,1.13258]
[1746023746771,1.1326,1765.8,1765.7,41.93258]
[1746023747468,2.6528,1765.9,1765.3,5.8395]
[1746023747667,5.9,1765.7,1765.3,5.46391]
[1746023747974,3.2078,1765.9,1765.4,43.63207]
[1746023748272,1.13266,1765.7,1765.6,1.13266]
[1746023749168,1.13276,1765.5,1765.4,41.93279]
[1746023749378,1.13276,1765.5,1765.4,41.93283]
[1746023749667,1.13283,1765.4,1765.3,6.4597]
[1746023749868,3.82503,1765.4,1765.3,4.96089]
[1746023750064,4.34048,1765.7,1765.3,3.828]
[1746023750274,4.598,1765.6,1765.4,40.8]
[1746023750469,8.35974,1765.6,1765.5,1.13276]
[1746023750766,7.227,1765.6,1765.5,1.13276]
[1746023750968,4.598,1765.7,1765.6,1.1327]
[1746023751172,5.73068,1765.7,1765.6,1.13267]
[1746023752067,1.1327,1765.6,1765.5,4.96072]
[1746023752274,1.13276,1765.5,1765.4,44.43391]
[1746023752571,8.93845,1765.7,1765.6,1.1327]
[1746023752772,1.13276,1765.6,1765.5,1.13274]
[1746023752976,3.76176,1765.6,1765.5,1.13274]
[1746023753162,1.13276,1765.5,1765.4,44.43388]
[1746023753367,6.91816,1765.5,1765.4,40.8]
[1746023753566,1.13289,1765.3,1765.2,1.13292]
[1746023753773,5.7319,1765.3,1765.2,1.13295]
[1746023753969,1.13306,1765.1,1765.0,41.93306]
[1746023754172,2.5776,1765.2,1765.0,40.8]
[1746023754371,8.93971,1765.3,1765.2,1.13295]
[1746023754572,1.13297,1765.2,1765.1,1.13297]
[1746023754771,3.71057,1765.2,1765.1,1.13297]
[1746023754973,4.599,1765.3,1765.2,1.13295]
[1746023755171,5.73189,1765.3,1765.2,1.13295]
[1746023755569,1.13298,1765.2,1765.1,1.13297]
[1746023755767,8.93975,1765.3,1765.2,1.13295]
[1746023756170,1.13297,1765.2,1765.1,1.13297]
[1746023756368,1.13302,1765.1,1764.9,2.591]
[1746023756571,3.2078,1765.1,1764.9,1.13313]
[1746023756869,3.2078,1765.1,1765.0,1.13308]